Cogmind - Beta 12 @@@ ROGUE MODE // 2023.04.13 @ 00:54:45 Player: Mr Goldstein Result: Destroyed by S-27 Virus with Autogun Performance ------------- Evolutions (5) 2500 Regions Visited (11) 2200 Robots Destroyed (0) 0 Value Destroyed (0) 0 Prototype IDs (0) 0 Alien Tech Used (0) 0 Bonus (18139) 18139 TOTAL SCORE: 22839 Bonus ------- Fragile Parts 1250 No Salvage 1250 Pure Core 2500 Scavenger 5000 Simple Hacker 2402 Trapped 1250 Unstable Evolution 2500 Pacifist 1987 Cogmind --------- Core Integrity 0/1000 Matter 300/300 Energy 98/100 System Corruption 2% Temperature Cool (0) Movement Core (50) Location -5/Upper Caves Parts ------- > --- POWER (2) -------- (None) > --- PROPULSION (6) --- (None) > --- UTILITY (4) ------ (None) > --- WEAPON (5) ------- (None) > --- INVENTORY (0) ---- (None) Peak State ------------ None Favorites ----------- Power None Propulsion None Utility None Weapon None Build | -11 -10 -9 -8 -8 -7 -6 -6 -6 -5 -5 -5 ------- Run | Jun Mat Mat Mat Sto Fac Fac Was Fac Fac Upp Upp Slots Evolved 10 | . . 2 2 . 2 2 . . 2 . . Power 1 | . . 1 . . . . . . . . . Propulsion 4 | . . 1 . . . 1 . . 2 . . Utility 2 | . . . 1 . 1 . . . . . . Weapon 3 | . . . 1 . 1 1 . . . . . Parts Attached . | . . . . . . . . . . . . Power . | . . . . . . . . . . . . Engine . | . . . . . . . . . . . . Core . | . . . . . . . . . . . . Reactor . | . . . . . . . . . . . . Propulsion . | . . . . . . . . . . . . Treads . | . . . . . . . . . . . . Leg . | . . . . . . . . . . . . Wheel . | . . . . . . . . . . . . Hover . | . . . . . . . . . . . . Flight . | . . . . . . . . . . . . Utility . | . . . . . . . . . . . . Device . | . . . . . . . . . . . . Storage . | . . . . . . . . . . . . Processor . | . . . . . . . . . . . . Hackware . | . . . . . . . . . . . . Protection . | . . . . . . . . . . . . Artifact . | . . . . . . . . . . . . Weapon . | . . . . . . . . . . . . Energy Gun . | . . . . . . . . . . . . Energy Cannon . | . . . . . . . . . . . . Ballistic Gun . | . . . . . . . . . . . . Ballistic Cannon . | . . . . . . . . . . . . Launcher . | . . . . . . . . . . . . Special Weapon . | . . . . . . . . . . . . Impact Weapon . | . . . . . . . . . . . . Slashing Weapon . | . . . . . . . . . . . . Piercing Weapon . | . . . . . . . . . . . . Special Melee Weapon . | . . . . . . . . . . . . Unidentified Prototypes . | . . . . . . . . . . . . Parts Lost . | . . . . . . . . . . . . Power . | . . . . . . . . . . . . Propulsion . | . . . . . . . . . . . . Utility . | . . . . . . . . . . . . Weapon . | . . . . . . . . . . . . Highest Loss Streak . | . . . . . . . . . . . . To Critical Strikes . | . . . . . . . . . . . . Average Slot Usage (%) . | . . . . . . . . . . . . Naked Turns 663 | . 63 44 48 70 72 52 36 30 51 113 84 Heaviest Build . | . . . . . . . . . . . . Greatest Support 3 | 3 3 3 3 3 3 3 3 3 3 3 3 Greatest Overweight (x) . | . . . . . . . . . . . . Average Overweight (x) . | . . . . . . . . . . . . Largest Inventory Capacity . | . . . . . . . . . . . . Average Capacity . | . . . . . . . . . . . . Most Carried . | . . . . . . . . . . . . Average Carried . | . . . . . . . . . . . . Final Capacity . | . . . . . . . . . . . . Final Carried . | . . . . . . . . . . . . Class Distribution -------------------- 100% | Mutant Dominant Class ---------------- Mutant | -10/Materials Mutant | -9/Materials Mutant | -8/Materials Mutant | -8/Storage Mutant | -7/Factory Mutant | -6/Factory Mutant | -6/Waste Mutant | -6/Factory Mutant | -5/Factory Mutant | -5/Upper Caves Mutant | -5/Upper Caves Resources | -11 -10 -9 -8 -8 -7 -6 -6 -6 -5 -5 -5 ----------- Run | Jun Mat Mat Mat Sto Fac Fac Was Fac Fac Upp Upp Matter Collected 131 | 55 . . 13 . . . . . . 63 . Remotely . | . . . . . . . . . . . . Salvage Created . | . . . . . . . . . . . . Parts . | . . . . . . . . . . . . Haulers Intercepted . | . . . . . . . . . . . . Recyclers Shooed . | . . . . . . . . . . . . Parts Field Recycled . | . . . . . . . . . . . . Retrieved Matter . | . . . . . . . . . . . . Parts Self-Destructed . | . . . . . . . . . . . . Prevented . | . . . . . . . . . . . . Kills | -11 -10 -9 -8 -8 -7 -6 -6 -6 -5 -5 -5 ------- Run | Jun Mat Mat Mat Sto Fac Fac Was Fac Fac Upp Upp Combat Hostiles Destroyed . | . . . . . . . . . . . . Classes Destroyed . | . . . . . . . . . . . . Best Kill Streak . | . . . . . . . . . . . . Combat Bots Only . | . . . . . . . . . . . . Max Kills in Single Turn . | . . . . . . . . . . . . Gunslinging . | . . . . . . . . . . . . Exploded . | . . . . . . . . . . . . Melee . | . . . . . . . . . . . . Uniques/NPCs Destroyed . | . . . . . . . . . . . . Combat | -11 -10 -9 -8 -8 -7 -6 -6 -6 -5 -5 -5 -------- Run | Jun Mat Mat Mat Sto Fac Fac Was Fac Fac Upp Upp Damage Taken 2237 | . 189 23 76 282 472 136 57 . 32 688 282 Core 2237 | . 189 23 76 282 472 136 57 . 32 688 282 Absorbed by Shields . | . . . . . . . . . . . . Core Remaining (%) 60 | 100 24 94 . 34 32 . . 77 . . . Volleys Fired . | . . . . . . . . . . . . Largest . | . . . . . . . . . . . . Hottest . | . . . . . . . . . . . . Shots Fired . | . . . . . . . . . . . . Gun . | . . . . . . . . . . . . Cannon . | . . . . . . . . . . . . Launcher . | . . . . . . . . . . . . Special . | . . . . . . . . . . . . Kinetic . | . . . . . . . . . . . . Thermal . | . . . . . . . . . . . . Explosive . | . . . . . . . . . . . . Electromagnetic . | . . . . . . . . . . . . Robot Hit Streak . | . . . . . . . . . . . . Robot Miss Streak . | . . . . . . . . . . . . Penetration Max . | . . . . . . . . . . . . Secondary Targets . | . . . . . . . . . . . . Shots Hit Robots . | . . . . . . . . . . . . Core Hits 5 | . 3 1 . 1 . . . . . . . Critical Kills . | . . . . . . . . . . . . Critical Parts Destroyed . | . . . . . . . . . . . . Critical Strikes . | . . . . . . . . . . . . Melee Attacks . | . . . . . . . . . . . . Impact . | . . . . . . . . . . . . Slashing . | . . . . . . . . . . . . Piercing . | . . . . . . . . . . . . Sneak Attacks . | . . . . . . . . . . . . Combat Hostiles . | . . . . . . . . . . . . Follow-up Attacks . | . . . . . . . . . . . . Damage Inflicted 70 | . 28 4 5 27 6 . . . . . . Guns . | . . . . . . . . . . . . Cannons . | . . . . . . . . . . . . Explosions . | . . . . . . . . . . . . Melee . | . . . . . . . . . . . . Ramming 70 | . 28 4 5 27 6 . . . . . . Kinetic . | . . . . . . . . . . . . Thermal . | . . . . . . . . . . . . Explosive . | . . . . . . . . . . . . Electromagnetic . | . . . . . . . . . . . . Impact . | . . . . . . . . . . . . Slashing . | . . . . . . . . . . . . Piercing . | . . . . . . . . . . . . Highest Corruption 2 | . 1 . . 2 1 1 1 1 . 2 2 Average Corruption 1 | . 1 . . 2 1 1 1 1 . 1 2 Corruption Purged . | . . . . . . . . . . . . Corruption Blocked . | . . . . . . . . . . . . Effects 2 | . . . . . . . 1 . . . 1 Message Errors 2 | . . . . . . . 1 . . . 1 Overload Shots . | . . . . . . . . . . . . Overflow Damage . | . . . . . . . . . . . . Projectiles . | . . . . . . . . . . . . Explosions . | . . . . . . . . . . . . Melee . | . . . . . . . . . . . . Knockbacks 1 | . . . . 1 . . . . . . . Impact 1 | . . . . 1 . . . . . . . Kinetic . | . . . . . . . . . . . . Secondary . | . . . . . . . . . . . . Self-Inflicted Damage 29 | . 11 2 2 11 3 . . . . . . Shots . | . . . . . . . . . . . . Rammed 18 | . 9 1 1 6 1 . . . . . . Targets Rammed 18 | . 9 1 1 6 1 . . . . . . Kicked . | . . . . . . . . . . . . Crushed . | . . . . . . . . . . . . Highest Temperature . | . . . . . . . . . . . . Average Temperature . | . . . . . . . . . . . . Received Heat Transfer 372 | . 75 12 18 81 30 . . . . 147 9 Siege Activations . | . . . . . . . . . . . . Robots Corrupted . | . . . . . . . . . . . . Combat Hostiles . | . . . . . . . . . . . . Parts Fried . | . . . . . . . . . . . . Impact Corruptions . | . . . . . . . . . . . . Robots Melted . | . . . . . . . . . . . . Combat Hostiles . | . . . . . . . . . . . . Parts Melted . | . . . . . . . . . . . . Heat Transferred . | . . . . . . . . . . . . Parts Sabotaged . | . . . . . . . . . . . . Parts Stolen . | . . . . . . . . . . . . Parts Stripped . | . . . . . . . . . . . . Power Chain Reactions . | . . . . . . . . . . . . Missiles Intercepted . | . . . . . . . . . . . . Alert | -11 -10 -9 -8 -8 -7 -6 -6 -6 -5 -5 -5 ------- Run | Jun Mat Mat Mat Sto Fac Fac Was Fac Fac Upp Upp Peak Influence 156 | . 30 27 80 78 156 98 34 9 49 . . Initial 83 | . . 12 11 33 35 83 34 9 4 . . Average 40 | . 2 15 43 56 70 94 33 9 19 . . Maximum Alert Level . | . . . . . . . . . . . . Low Security (%) 100 | 100 100 100 100 100 100 100 100 100 100 . . Level 1 . | . . . . . . . . . . . . Level 2 . | . . . . . . . . . . . . Level 3 . | . . . . . . . . . . . . Level 4 . | . . . . . . . . . . . . Level 5 . | . . . . . . . . . . . . High Security . | . . . . . . . . . . . . Max Security . | . . . . . . . . . . . . Squads Dispatched 9 | . 1 2 1 1 3 1 . . . . . Investigation 5 | . 1 1 1 . 2 . . . . . . Extermination . | . . . . . . . . . . . . Reinforcement 4 | . . 1 . 1 1 1 . . . . . Assault . | . . . . . . . . . . . . Garrison . | . . . . . . . . . . . . Intercept . | . . . . . . . . . . . . Searches Triggered . | . . . . . . . . . . . . Construction Impeded . | . . . . . . . . . . . . Haulers Reinforced . | . . . . . . . . . . . . Active Scanning Responses . | . . . . . . . . . . . . Cargo Convoy Interrupts . | . . . . . . . . . . . . Stealth | -11 -10 -9 -8 -8 -7 -6 -6 -6 -5 -5 -5 --------- Run | Jun Mat Mat Mat Sto Fac Fac Was Fac Fac Upp Upp Distress Signals 3 | . . . 1 1 . . . . 1 . . Communications Jammed . | . . . . . . . . . . . . Distress Signals . | . . . . . . . . . . . . Times Spotted 74 | . 6 6 5 7 12 1 6 . 4 21 6 Peak Tracking Total 13 | . 4 6 7 7 10 1 6 . 4 13 6 Tactical Retreats 7 | . . . . . 2 . . . 1 3 1 Traps | -11 -10 -9 -8 -8 -7 -6 -6 -6 -5 -5 -5 ------- Run | Jun Mat Mat Mat Sto Fac Fac Was Fac Fac Upp Upp Traps Triggered 17 | . 3 5 2 2 . 4 . . 1 . . Indirectly . | . . . . . . . . . . . . Trap Hack Attempts . | . . . . . . . . . . . . Triggered . | . . . . . . . . . . . . Disarmed . | . . . . . . . . . . . . Reprogrammed . | . . . . . . . . . . . . Reused . | . . . . . . . . . . . . Traps Extracted . | . . . . . . . . . . . . Installed . | . . . . . . . . . . . . Triggered . | . . . . . . . . . . . . Machines | -11 -10 -9 -8 -8 -7 -6 -6 -6 -5 -5 -5 ---------- Run | Jun Mat Mat Mat Sto Fac Fac Was Fac Fac Upp Upp Machines Disabled . | . . . . . . . . . . . . Max in Single Turn . | . . . . . . . . . . . . Machines Repaired . | . . . . . . . . . . . . Machines Sabotaged . | . . . . . . . . . . . . Overloaded Fab Kills . | . . . . . . . . . . . . Hacking | -11 -10 -9 -8 -8 -7 -6 -6 -6 -5 -5 -5 --------- Run | Jun Mat Mat Mat Sto Fac Fac Was Fac Fac Upp Upp Machines Accessed 5 | . . . 3 . 2 . . . . . . Terminals 5 | . . . 3 . 2 . . . . . . Fabricators . | . . . . . . . . . . . . Repair Stations . | . . . . . . . . . . . . Recycling Units . | . . . . . . . . . . . . Scanalyzers . | . . . . . . . . . . . . Garrison Access . | . . . . . . . . . . . . Total Hacks 9 | . . . 4 . 5 . . . . . . Successful 4 | . . . 3 . 1 . . . . . . Failed 5 | . . . 1 . 4 . . . . . . Catastrophic 2 | . . . . . 2 . . . . . . Database Lockouts . | . . . . . . . . . . . . Manual . | . . . . . . . . . . . . Terminals 9 | . . . 4 . 5 . . . . . . Fabricators . | . . . . . . . . . . . . Repair Stations . | . . . . . . . . . . . . Recycling Units . | . . . . . . . . . . . . Scanalyzers . | . . . . . . . . . . . . Garrison Access . | . . . . . . . . . . . . Terminal Hacks 4 | . . . 3 . 1 . . . . . . Branch Access Points 1 | . . . . . 1 . . . . . . Emergency Access Points 1 | . . . 1 . . . . . . . . Zone Layout 2 | . . . 2 . . . . . . . . Fabricator Hacks . | . . . . . . . . . . . . Repair Station Hacks . | . . . . . . . . . . . . Recycling Unit Hacks . | . . . . . . . . . . . . Scanalyzer . | . . . . . . . . . . . . Garrison Access Hacks . | . . . . . . . . . . . . Unauthorized Hacks . | . . . . . . . . . . . . Terminals . | . . . . . . . . . . . . Fabricators . | . . . . . . . . . . . . Repair Stations . | . . . . . . . . . . . . Recycling Units . | . . . . . . . . . . . . Scanalyzers . | . . . . . . . . . . . . Garrison Access . | . . . . . . . . . . . . Data Cores Recovered . | . . . . . . . . . . . . Used . | . . . . . . . . . . . . Hacking Detections 4 | . . . 2 . 2 . . . . . . Full Trace Events 2 | . . . . . 2 . . . . . . Feedback Events 1 | . . . . . 1 . . . . . . Corruption 1 | . . . . . 1 . . . . . . Feedback Blocked . | . . . . . . . . . . . . Robot Schematics Acquired . | . . . . . . . . . . . . Robots Built . | . . . . . . . . . . . . Authchips . | . . . . . . . . . . . . Time . | . . . . . . . . . . . . Total Robot Build Rating . | . . . . . . . . . . . . Part Schematics Acquired . | . . . . . . . . . . . . Parts Built . | . . . . . . . . . . . . Authchips . | . . . . . . . . . . . . Time . | . . . . . . . . . . . . Total Part Build Rating . | . . . . . . . . . . . . Parts Repaired . | . . . . . . . . . . . . Time . | . . . . . . . . . . . . Parts Recycled . | . . . . . . . . . . . . Recycled Matter . | . . . . . . . . . . . . Retrieved Matter . | . . . . . . . . . . . . Retrieved Components . | . . . . . . . . . . . . Parts Scanalyzed . | . . . . . . . . . . . . Part Schematics Acquired . | . . . . . . . . . . . . Parts Damaged . | . . . . . . . . . . . . Bothacking | -11 -10 -9 -8 -8 -7 -6 -6 -6 -5 -5 -5 ------------ Run | Jun Mat Mat Mat Sto Fac Fac Was Fac Fac Upp Upp Used RIF Installer . | . . . . . . . . . . . . Robots Hacked . | . . . . . . . . . . . . Non-combat . | . . . . . . . . . . . . Combat . | . . . . . . . . . . . . Robot Hacks Applied . | . . . . . . . . . . . . Relay Couplers Released . | . . . . . . . . . . . . Fabnet Peak Effective % . | . . . . . . . . . . . . Robots Rewired . | . . . . . . . . . . . . Allies Hacked . | . . . . . . . . . . . . Hacks Repelled . | . . . . . . . . . . . . Allies | -11 -10 -9 -8 -8 -7 -6 -6 -6 -5 -5 -5 -------- Run | Jun Mat Mat Mat Sto Fac Fac Was Fac Fac Upp Upp Total Allies 4 | . . . . . . 3 1 . . . . Largest Group 3 | . . . . . . 3 2 . . . . Highest-Rated Group 93 | . . . . . . 93 62 . . . . Highest-Rated Ally 31 | . . . . . . 31 31 . . . . Total Orders . | . . . . . . . . . . . . Ally Attacks 14 | . . . . . . 10 4 . . . . Total Damage 232 | . . . . . . 169 63 . . . . Kills . | . . . . . . . . . . . . Allies Corrupted . | . . . . . . . . . . . . Allies Melted . | . . . . . . . . . . . . Intel | -11 -10 -9 -8 -8 -7 -6 -6 -6 -5 -5 -5 ------- Run | Jun Mat Mat Mat Sto Fac Fac Was Fac Fac Upp Upp Robot Analysis Total . | . . . . . . . . . . . . Derelict Logs Recovered 2 | . . . . . . . . . . 2 . Drone Launches . | . . . . . . . . . . . . Drone Recoveries . | . . . . . . . . . . . . Exploration | -11 -10 -9 -8 -8 -7 -6 -6 -6 -5 -5 -5 ------------- Run | Jun Mat Mat Mat Sto Fac Fac Was Fac Fac Upp Upp Turns Passed 672 | 9 63 44 48 70 72 52 36 30 51 113 84 Spaces Moved 1304 | 18 108 86 93 127 142 103 71 60 102 226 168 Core 1304 | 18 108 86 93 127 142 103 71 60 102 226 168 Treads . | . . . . . . . . . . . . Legs . | . . . . . . . . . . . . Wheels . | . . . . . . . . . . . . Hover . | . . . . . . . . . . . . Flight . | . . . . . . . . . . . . Fastest Speed 50 | 50 50 50 50 50 50 50 50 50 50 50 50 Average Speed 50 | 50 50 50 50 50 50 50 50 50 50 50 50 Slowest Speed 50 | 50 50 50 50 50 50 50 50 50 50 50 50 Overloaded Moves . | . . . . . . . . . . . . Propulsion Burnouts . | . . . . . . . . . . . . Robots Hopped . | . . . . . . . . . . . . Cave-ins Triggered . | . . . . . . . . . . . . Exploration Rate (%) 22 | 3 26 12 17 30 9 4 74 1 6 51 39 Regions Visited 11 Branch Regions 3 Pre-discovered Areas . | . . . . . . . . . . . . Known Exits Taken . | . . . . . . . . . . . . Unknown Exits Taken 9 | 1 1 1 1 1 1 . . 1 1 1 . Scrap Searched . | . . . . . . . . . . . . Spaces Dug . | . . . . . . . . . . . . Terrain Destroyed . | . . . . . . . . . . . . Melee . | . . . . . . . . . . . . Projectile . | . . . . . . . . . . . . AOE . | . . . . . . . . . . . . Terrain Rammed . | . . . . . . . . . . . . Walls Destroyed . | . . . . . . . . . . . . Machines Disabled . | . . . . . . . . . . . . Actions | -11 -10 -9 -8 -8 -7 -6 -6 -6 -5 -5 -5 --------- Run | Jun Mat Mat Mat Sto Fac Fac Was Fac Fac Upp Upp Total 1312 | 17 116 86 93 132 142 103 70 59 101 225 168 Wait . | . . . . . . . . . . . . Move 1295 | 17 107 86 92 126 141 103 70 59 101 225 168 Hop . | . . . . . . . . . . . . Pick Up . | . . . . . . . . . . . . Fast Attach . | . . . . . . . . . . . . Attach . | . . . . . . . . . . . . Detach . | . . . . . . . . . . . . Swap . | . . . . . . . . . . . . Drop . | . . . . . . . . . . . . Fire . | . . . . . . . . . . . . Melee . | . . . . . . . . . . . . Ram 17 | . 9 . 1 6 1 . . . . . . Kick . | . . . . . . . . . . . . Crush . | . . . . . . . . . . . . Escape Stasis . | . . . . . . . . . . . . Rewire . | . . . . . . . . . . . . Trap . | . . . . . . . . . . . . Miscellaneous . | . . . . . . . . . . . . Route ------- -11/Junkyard -10/Materials -9/Materials -8/Materials -8/Storage -7/Factory (discovered 3 exits: [*Fac] / Low x2) -6/Factory -6/Waste -6/Factory -5/Factory -5/Upper Caves -5/Upper Caves History --------- Turn | Location | Event 4 | -11/Junkyard | Discovered new exit (range 13) 10 | -11/Junkyard | Entered Materials 49 | -10/Materials | Core integrity fell below 50% 68 | -10/Materials | Discovered new exit (range 7) 73 | -10/Materials | Entered another Materials area 73 | -9/Materials | Evolved 2 slots: Power x1, Propulsion x1 109 | -9/Materials | Discovered new exit (range 16) 117 | -9/Materials | Entered another Materials area 117 | -8/Materials | Evolved 2 slots: Utility x1, Weapon x1 157 | -8/Materials | Discovered new exit (range 15) 165 | -8/Materials | Entered Storage 214 | -8/Storage | Core integrity fell below 50% 232 | -8/Storage | Discovered new exit (range 5) 235 | -8/Storage | Entered Factory 235 | -7/Factory | Evolved 2 slots: Utility x1, Weapon x1 267 | -7/Factory | Identified exit to Lower Caves 299 | -7/Factory | Core integrity fell below 50% 302 | -7/Factory | Discovered new exit (range 9) 305 | -7/Factory | Build established: Mutant 307 | -7/Factory | Entered another Factory area 307 | -6/Factory | Evolved 2 slots: Propulsion x1, Weapon x1 321 | -6/Factory | Allied Derelicts emerged from ambush trap array 359 | -6/Factory | Sucked down chute 359 | -6/Factory | Entered Waste 359 | -6/Waste | Met up with 1 ally sucked down the chute earlier 365 | -6/Waste | 1 allies followed down the chute 371 | -6/Waste | Spotted C-40 Crusher 372 | -6/Waste | Spotted C-40 Crusher 375 | -6/Waste | Spotted C-40 Crusher 381 | -6/Waste | Spotted C-40 Crusher 383 | -6/Waste | Spotted C-40 Crusher 384 | -6/Waste | Spotted C-40 Crusher 386 | -6/Waste | Discovered new exit (range 15) 395 | -6/Waste | Entered Factory 418 | -6/Factory | Discovered new exit (range 15) 425 | -6/Factory | Entered another Factory area 425 | -5/Factory | Evolved 2 slots: Propulsion x2 469 | -5/Factory | Discovered new exit (range 15) 476 | -5/Factory | Entered Upper Caves 478 | -5/Upper Caves | Attracted the attention of an 0b10 checkpoint 492 | -5/Upper Caves | Learned Factory trap positions 561 | -5/Upper Caves | Spotted B-75 Beast 562 | -5/Upper Caves | Core integrity fell below 50% 569 | -5/Upper Caves | Learned Factory terminal intel 578 | -5/Upper Caves | Discovered new exit (range 15) 589 | -5/Upper Caves | Entered another Upper Caves area 663 | -5/Upper Caves | Core integrity fell below 20% 673 | -5/Upper Caves | Destroyed by S-27 Virus with Autogun Last Messages --------------- 00470_ Arcs of energy rise from the floor. 00474_ U-05 Engineer lays Concrete. 00474_ O-16 Technician: "IFF HANDSHAKE FAILED. SECURING TERMINAL." LOCATION=UNKNOWN GOAL=ESCAPE 00477_ Slug penetrates Wall. 00478_ Y-64 Sentinel: "INTERCEPTING UNREGISTERED DERELICT." 00492_ Acquired derelict log, extracted data. Data stored: Factory trap records. 00511_ Slug penetrates Wall. 00523_ Critical hit (Burn: +37). 00569_ Acquired derelict log, extracted data. Data stored: Factory terminal intel. 00578_ EXIT=FOUND 00584_ S-27 Virus destroyed. 00585_ Acquired 41 matter. 00585_ Acquired 22 matter. LOCATION=UNKNOWN GOAL=ESCAPE 00647_ |,O2IQ&0GH7UUJ|HKO